[Event "Early-Titled-Tuesday-Blitz-March-12-2024"]
[Site "Chess.com"]
[Date "2024.03.12"]
[Round "7"]
[White "crazyluzhinTh3"]
[Black "eagleclaw07"]
[Result "0-1"]
[WhiteElo "2576"]
[BlackElo "2788"]
[TimeControl "180+1"]
[EndTime "9:14:36 PDT"]
[Termination "eagleclaw07 won by resignation"]

1. e4 {[%clk 0:03:00.9]} 1... Nf6 {[%clk 0:03:00.9]} 2. e5 {[%clk 0:03:00.8]}
2... Nd5 {[%clk 0:03:01.5]} 3. d4 {[%clk 0:03:01.5]} 3... d6 {[%clk 0:03:01.9]}
4. Nf3 {[%clk 0:03:02.2]} 4... dxe5 {[%clk 0:03:02.1]} 5. Nxe5 {[%clk
0:03:01.9]} 5... c6 {[%clk 0:03:02.6]} 6. Be2 {[%clk 0:03:01.1]} 6... Bf5 {[%clk
0:03:02.5]} 7. O-O {[%clk 0:03:00.8]} 7... Nd7 {[%clk 0:03:03.2]} 8. Nf3 {[%clk
0:03:00.1]} 8... e6 {[%clk 0:03:03.6]} 9. c3 {[%clk 0:02:59.5]} 9... h6 {[%clk
0:03:03.5]} 10. Nbd2 {[%clk 0:02:59.9]} 10... Bd6 {[%clk 0:03:03.1]} 11. Nc4
{[%clk 0:03:00.4]} 11... Bc7 {[%clk 0:03:03.2]} 12. a4 {[%clk 0:02:57.5]} 12...
O-O {[%clk 0:03:02.8]} 13. Re1 {[%clk 0:02:55.6]} 13... a5 {[%clk 0:03:01.9]}
14. Nce5 {[%clk 0:02:51.7]} 14... Nxe5 {[%clk 0:03:01.8]} 15. Nxe5 {[%clk
0:02:52.6]} 15... Bxe5 {[%clk 0:03:02.1]} 16. dxe5 {[%clk 0:02:53.2]} 16... Qc7
{[%clk 0:03:02.1]} 17. Bf1 {[%clk 0:02:52.3]} 17... Rfd8 {[%clk 0:03:00.8]} 18.
Qf3 {[%clk 0:02:51.6]} 18... Ne7 {[%clk 0:02:58.2]} 19. Qg3 {[%clk 0:02:47.6]}
19... Bg6 {[%clk 0:02:50.3]} 20. h4 {[%clk 0:02:47.5]} 20... Kh7 {[%clk
0:02:44.8]} 21. Qh3 {[%clk 0:02:40.2]} 21... Rd5 {[%clk 0:02:38.6]} 22. h5
{[%clk 0:02:33.9]} 22... Bf5 {[%clk 0:02:39.1]} 23. Qg3 {[%clk 0:02:32.1]} 23...
Rad8 {[%clk 0:02:39.8]} 24. Bf4 {[%clk 0:02:27.1]} 24... Bd3 {[%clk 0:02:38.3]}
25. c4 {[%clk 0:02:02.2]} 25... Rd4 {[%clk 0:02:29.2]} 26. Be3 {[%clk
0:01:55.5]} 26... Nf5 {[%clk 0:02:28.8]} 27. Qf3 {[%clk 0:01:55.4]} 27... Nxe3
{[%clk 0:02:20.4]} 28. Rxe3 {[%clk 0:01:45.8]} 28... Bxf1 {[%clk 0:02:18.4]} 29.
Rxf1 {[%clk 0:01:46.3]} 29... Rxc4 {[%clk 0:02:17.7]} 30. b3 {[%clk 0:01:46.8]}
30... Rcd4 {[%clk 0:02:15.4]} 31. g3 {[%clk 0:01:45.1]} 31... R8d5 {[%clk
0:02:13.6]} 32. Rfe1 {[%clk 0:01:45]} 32... Kg8 {[%clk 0:02:11]} 33. Kg2 {[%clk
0:01:41.3]} 33... Qd8 {[%clk 0:02:10.6]} 34. Rc1 {[%clk 0:01:28.4]} 34... Qg5
{[%clk 0:02:10.5]} 35. Rce1 {[%clk 0:01:24.8]} 35... Rb4 {[%clk 0:02:10.9]} 36.
Re4 {[%clk 0:01:23]} 36... Rxe4 {[%clk 0:02:08.8]} 37. Rxe4 {[%clk 0:01:23.8]}
37... Rxe5 {[%clk 0:02:08.6]} 38. Rg4 {[%clk 0:01:24.1]} 38... Qxh5 {[%clk
0:02:05.2]} 39. Qf4 {[%clk 0:01:24.6]} 39... Qf5 {[%clk 0:01:59]} 40. Qd4 {[%clk
0:01:21.1]} 40... Qf6 {[%clk 0:01:44.4]} 41. Qd7 {[%clk 0:01:07.9]} 41... Rf5
{[%clk 0:01:38.3]} 42. f4 {[%clk 0:01:00.1]} 42... Qb2+ {[%clk 0:01:34.8]} 43.
Kg1 {[%clk 0:00:59.4]} 43... Rd5 {[%clk 0:01:27.8]} 0-1

[Event "Early-Titled-Tuesday-Blitz-March-12-2024"]
[Site "Chess.com"]
[Date "2024.03.12"]
[Round "7"]
[White "santosalberto1987"]
[Black "ChessQueen"]
[Result "0-1"]
[WhiteElo "2575"]
[BlackElo "2762"]
[TimeControl "180+1"]
[EndTime "9:14:51 PDT"]
[Termination "ChessQueen won by resignation"]

1. e4 {[%clk 0:02:59.4]} 1... c6 {[%clk 0:02:59.9]} 2. c4 {[%clk 0:02:58.2]}
2... d5 {[%clk 0:03:00.8]} 3. exd5 {[%clk 0:02:59.1]} 3... cxd5 {[%clk
0:03:01.5]} 4. cxd5 {[%clk 0:03:00]} 4... Nf6 {[%clk 0:03:02.1]} 5. Qa4+ {[%clk
0:03:00.6]} 5... Nbd7 {[%clk 0:03:00.6]} 6. Bc4 {[%clk 0:03:00.8]} 6... g6
{[%clk 0:03:00.3]} 7. Nc3 {[%clk 0:03:00.9]} 7... Bg7 {[%clk 0:03:00.6]} 8. Nf3
{[%clk 0:03:01.2]} 8... O-O {[%clk 0:03:00.8]} 9. O-O {[%clk 0:03:01.2]} 9... a6
{[%clk 0:02:57.3]} 10. Qa3 {[%clk 0:02:59.8]} 10... Rb8 {[%clk 0:02:54.6]} 11.
Bb3 {[%clk 0:02:44.7]} 11... b5 {[%clk 0:02:52.9]} 12. Qb4 {[%clk 0:02:42.3]}
12... a5 {[%clk 0:02:31.7]} 13. Qh4 {[%clk 0:02:38.9]} 13... a4 {[%clk
0:02:29.5]} 14. Bc2 {[%clk 0:02:38.7]} 14... Nb6 {[%clk 0:02:19.8]} 15. d4
{[%clk 0:02:37.8]} 15... Nbxd5 {[%clk 0:02:17]} 16. Bh6 {[%clk 0:02:33.6]} 16...
Nxc3 {[%clk 0:02:11.5]} 17. bxc3 {[%clk 0:02:33.4]} 17... Bb7 {[%clk 0:02:12]}
18. Bxg7 {[%clk 0:02:21.5]} 18... Kxg7 {[%clk 0:02:12.9]} 19. Ne5 {[%clk
0:02:16.1]} 19... Qc7 {[%clk 0:02:08.4]} 20. Qg3 {[%clk 0:02:10.3]} 20... Rfc8
{[%clk 0:01:59.2]} 21. c4 {[%clk 0:01:48.6]} 21... bxc4 {[%clk 0:01:56.3]} 22.
Bxa4 {[%clk 0:01:48.8]} 22... c3 {[%clk 0:01:50.5]} 23. Bb3 {[%clk 0:01:45.3]}
23... Bd5 {[%clk 0:01:50]} 24. Bxd5 {[%clk 0:01:34.9]} 24... Nxd5 {[%clk
0:01:50.9]} 25. Qf3 {[%clk 0:01:35.3]} 25... Nf6 {[%clk 0:01:48.7]} 26. Rfc1
{[%clk 0:01:33.4]} 26... Rb2 {[%clk 0:01:46.8]} 27. a4 {[%clk 0:01:28.8]} 27...
Rd2 {[%clk 0:01:44.6]} 28. Qf4 {[%clk 0:01:18.5]} 28... Qd6 {[%clk 0:01:36.9]}
29. Rd1 {[%clk 0:00:55.9]} 29... Rxd1+ {[%clk 0:01:28.1]} 30. Rxd1 {[%clk
0:00:55.4]} 30... Rc4 {[%clk 0:01:22.1]} 31. Qe3 {[%clk 0:00:29.7]} 31... c2
{[%clk 0:01:22]} 32. Rc1 {[%clk 0:00:29.3]} 32... Rxd4 {[%clk 0:01:22]} 33. h3
{[%clk 0:00:26.6]} 33... Rd1+ {[%clk 0:01:21]} 34. Kh2 {[%clk 0:00:25.9]} 34...
Rxc1 {[%clk 0:01:20.9]} 0-1

[Event "Early-Titled-Tuesday-Blitz-March-12-2024"]
[Site "Chess.com"]
[Date "2024.03.12"]
[Round "7"]
[White "SharapovEvgeny"]
[Black "mikheeva86"]
[Result "1/2-1/2"]
[WhiteElo "2519"]
[BlackElo "2281"]
[TimeControl "180+1"]
[EndTime "9:15:09 PDT"]
[Termination "Game drawn by repetition"]

1. e4 {[%clk 0:02:59.4]} 1... e5 {[%clk 0:02:59.8]} 2. Nf3 {[%clk 0:02:59.1]}
2... Nc6 {[%clk 0:03:00.5]} 3. Bb5 {[%clk 0:02:59]} 3... Nf6 {[%clk 0:02:56.2]}
4. d3 {[%clk 0:02:58.6]} 4... Bc5 {[%clk 0:02:52.8]} 5. c3 {[%clk 0:02:57.7]}
5... O-O {[%clk 0:02:51.8]} 6. O-O {[%clk 0:02:57.4]} 6... d6 {[%clk 0:02:48.2]}
7. h3 {[%clk 0:02:56.6]} 7... a6 {[%clk 0:02:47.3]} 8. Ba4 {[%clk 0:02:56.2]}
8... h6 {[%clk 0:02:43.4]} 9. Re1 {[%clk 0:02:56]} 9... Bb6 {[%clk 0:02:34]} 10.
Nbd2 {[%clk 0:02:55.4]} 10... Ne7 {[%clk 0:02:30.6]} 11. Nf1 {[%clk 0:02:54.9]}
11... Ng6 {[%clk 0:02:29.7]} 12. Be3 {[%clk 0:02:53.9]} 12... c6 {[%clk
0:02:26.7]} 13. Ng3 {[%clk 0:02:48.2]} 13... Re8 {[%clk 0:02:21.3]} 14. Nh2
{[%clk 0:02:46.3]} 14... Nf4 {[%clk 0:02:15.8]} 15. Qf3 {[%clk 0:02:42.5]} 15...
Nxd3 {[%clk 0:02:02.3]} 16. Re2 {[%clk 0:02:42.5]} 16... Bxe3 {[%clk 0:01:59.2]}
17. fxe3 {[%clk 0:02:41.3]} 17... Nc5 {[%clk 0:01:58.3]} 18. Bc2 {[%clk
0:02:40.3]} 18... Qb6 {[%clk 0:01:53.7]} 19. b4 {[%clk 0:02:38.7]} 19... Ne6
{[%clk 0:01:50.4]} 20. Nf5 {[%clk 0:02:38.3]} 20... Qd8 {[%clk 0:01:44.7]} 21.
Rf1 {[%clk 0:02:34.5]} 21... Ng5 {[%clk 0:01:43.2]} 22. Nxh6+ {[%clk 0:02:29.2]}
22... gxh6 {[%clk 0:01:27.8]} 23. Qxf6 {[%clk 0:02:28.4]} 23... Qxf6 {[%clk
0:01:28.5]} 24. Rxf6 {[%clk 0:02:27.4]} 24... Re6 {[%clk 0:01:29.1]} 25. Rf1
{[%clk 0:02:22.7]} 25... a5 {[%clk 0:01:26.6]} 26. Bb3 {[%clk 0:02:19.1]} 26...
Re7 {[%clk 0:01:20.4]} 27. bxa5 {[%clk 0:02:12.9]} 27... Rxa5 {[%clk 0:01:19.5]}
28. Rf6 {[%clk 0:02:07.4]} 28... Kg7 {[%clk 0:01:12.8]} 29. Ref2 {[%clk
0:02:02.2]} 29... Be6 {[%clk 0:01:11.5]} 30. Bxe6 {[%clk 0:01:53.3]} 30... Rxe6
{[%clk 0:01:07.5]} 31. Ng4 {[%clk 0:01:49]} 31... Rxf6 {[%clk 0:01:01.3]} 32.
Nxf6 {[%clk 0:01:48]} 32... Kf8 {[%clk 0:00:41.8]} 33. h4 {[%clk 0:01:46]} 33...
Ne6 {[%clk 0:00:40.9]} 34. Ng4 {[%clk 0:01:45]} 34... Kg7 {[%clk 0:00:38.9]} 35.
Nf6 {[%clk 0:01:39.8]} 35... Kf8 {[%clk 0:00:29.6]} 36. Ng4 {[%clk 0:01:16.4]}
36... Kg7 {[%clk 0:00:29.2]} 37. Nf6 {[%clk 0:01:10.2]} 37... Kf8 {[%clk
0:00:28.1]} 1/2-1/2

[Event "Early-Titled-Tuesday-Blitz-March-12-2024"]
[Site "Chess.com"]
[Date "2024.03.12"]
[Round "7"]
[White "jaskol95"]
[Black "Mysterio47"]
[Result "0-1"]
[WhiteElo "2572"]
[BlackElo "2753"]
[TimeControl "180+1"]
[EndTime "9:15:11 PDT"]
[Termination "Mysterio47 won by resignation"]

1. e4 {[%clk 0:03:00.9]} 1... e5 {[%clk 0:02:57.7]} 2. Nf3 {[%clk 0:02:59.6]}
2... Nc6 {[%clk 0:02:56.9]} 3. Bc4 {[%clk 0:03:00.3]} 3... Nf6 {[%clk
0:02:53.7]} 4. Ng5 {[%clk 0:03:00.9]} 4... d5 {[%clk 0:02:53.2]} 5. exd5 {[%clk
0:03:01.8]} 5... Na5 {[%clk 0:02:53.4]} 6. Bb5+ {[%clk 0:03:02.6]} 6... c6
{[%clk 0:02:45]} 7. dxc6 {[%clk 0:03:03.5]} 7... bxc6 {[%clk 0:02:45.6]} 8. Bd3
{[%clk 0:03:03.9]} 8... Nd5 {[%clk 0:02:45.7]} 9. Nf3 {[%clk 0:02:55.7]} 9...
Bd6 {[%clk 0:02:45.6]} 10. Nc3 {[%clk 0:02:51.4]} 10... O-O {[%clk 0:02:44.5]}
11. Ne4 {[%clk 0:02:40.7]} 11... Bc7 {[%clk 0:02:38.2]} 12. Be2 {[%clk
0:02:22.2]} 12... f5 {[%clk 0:02:37.3]} 13. Nc3 {[%clk 0:02:22.3]} 13... e4
{[%clk 0:02:37.7]} 14. Ng1 {[%clk 0:02:08.2]} 14... Qe7 {[%clk 0:02:20.2]} 15.
Nxd5 {[%clk 0:02:04.8]} 15... cxd5 {[%clk 0:02:19.4]} 16. d4 {[%clk 0:01:56.8]}
16... f4 {[%clk 0:02:18.8]} 17. Bd2 {[%clk 0:01:40.4]} 17... f3 {[%clk
0:02:15.6]} 18. Bf1 {[%clk 0:01:31.7]} 18... fxg2 {[%clk 0:02:07]} 19. Bxg2
{[%clk 0:01:30.5]} 19... Nc4 {[%clk 0:02:06.7]} 20. Be3 {[%clk 0:01:20.2]} 20...
Qh4 {[%clk 0:01:59.4]} 21. Qc1 {[%clk 0:00:54.1]} 21... Bg4 {[%clk 0:01:50.9]}
22. Ne2 {[%clk 0:00:51.2]} 22... Bxe2 {[%clk 0:01:40]} 23. Kxe2 {[%clk
0:00:50.6]} 23... Qg4+ {[%clk 0:01:40]} 24. Kf1 {[%clk 0:00:51.2]} 24... Rf7
{[%clk 0:01:37.6]} 25. Kg1 {[%clk 0:00:20.6]} 25... Raf8 {[%clk 0:01:35.1]} 26.
Qd1 {[%clk 0:00:21.2]} 26... Qh4 {[%clk 0:01:27.1]} 27. Qe2 {[%clk 0:00:17.7]}
27... Nxe3 {[%clk 0:01:25.2]} 28. Qxe3 {[%clk 0:00:10.2]} 28... Rxf2 {[%clk
0:01:25.1]} 29. Rf1 {[%clk 0:00:10.1]} 29... Rxg2+ {[%clk 0:01:19.7]} 30. Kxg2
{[%clk 0:00:09.5]} 30... Qg4+ {[%clk 0:01:20.1]} 31. Qg3 {[%clk 0:00:09.1]}
31... Bxg3 {[%clk 0:01:20]} 32. Rxf8+ {[%clk 0:00:09.8]} 32... Kxf8 {[%clk
0:01:20.7]} 33. hxg3 {[%clk 0:00:10.7]} 33... Qf3+ {[%clk 0:01:21.1]} 34. Kh2
{[%clk 0:00:10.9]} 34... Qf2+ {[%clk 0:01:21.1]} 35. Kh3 {[%clk 0:00:11.5]}
35... e3 {[%clk 0:01:21.4]} 0-1

[Event "Early-Titled-Tuesday-Blitz-March-12-2024"]
[Site "Chess.com"]
[Date "2024.03.12"]
[Round "7"]
[White "josephymwale33"]
[Black "NikitaShnadrygin"]
[Result "0-1"]
[WhiteElo "2510"]
[BlackElo "2671"]
[TimeControl "180+1"]
[EndTime "9:15:11 PDT"]
[Termination "NikitaShnadrygin won by resignation"]

1. e4 {[%clk 0:03:00.9]} 1... c5 {[%clk 0:02:59.2]} 2. Nf3 {[%clk 0:03:00.6]}
2... e6 {[%clk 0:02:59.4]} 3. c4 {[%clk 0:02:58.8]} 3... Nc6 {[%clk 0:02:59.2]}
4. Nc3 {[%clk 0:02:59.1]} 4... g5 {[%clk 0:02:59.2]} 5. h3 {[%clk 0:02:50.8]}
5... Bg7 {[%clk 0:02:59]} 6. d3 {[%clk 0:02:50.6]} 6... h6 {[%clk 0:02:58.8]} 7.
Be2 {[%clk 0:02:50.6]} 7... Nge7 {[%clk 0:02:58.3]} 8. Be3 {[%clk 0:02:51]} 8...
Nd4 {[%clk 0:02:58.3]} 9. Bxd4 {[%clk 0:02:43.4]} 9... cxd4 {[%clk 0:02:58.3]}
10. Nb5 {[%clk 0:02:44]} 10... Qb6 {[%clk 0:02:52.3]} 11. a4 {[%clk 0:02:12.3]}
11... a6 {[%clk 0:02:51.2]} 12. a5 {[%clk 0:02:11.3]} 12... Qc5 {[%clk
0:02:50.5]} 13. Na3 {[%clk 0:02:02.8]} 13... Qxa5+ {[%clk 0:02:49.5]} 14. Kf1
{[%clk 0:02:01.4]} 14... Qc5 {[%clk 0:02:35]} 15. Nb5 {[%clk 0:01:53.7]} 15...
O-O {[%clk 0:02:17.7]} 16. Qd2 {[%clk 0:01:41.1]} 16... Nc6 {[%clk 0:02:13.5]}
17. Na3 {[%clk 0:01:37.3]} 17... Rb8 {[%clk 0:01:51.3]} 18. Nc2 {[%clk
0:01:35.8]} 18... b5 {[%clk 0:01:22.6]} 19. b4 {[%clk 0:01:34.4]} 19... Qe7
{[%clk 0:01:21]} 20. c5 {[%clk 0:01:34.1]} 20... d6 {[%clk 0:01:14.3]} 21. cxd6
{[%clk 0:01:29.2]} 21... Qxd6 {[%clk 0:01:15.2]} 22. g3 {[%clk 0:01:18.5]} 22...
Bb7 {[%clk 0:01:12]} 23. Kg2 {[%clk 0:01:14.3]} 23... f5 {[%clk 0:01:12]} 24. h4
{[%clk 0:01:10]} 24... g4 {[%clk 0:01:07.2]} 25. Nh2 {[%clk 0:01:08]} 25... Ne5
{[%clk 0:00:59.7]} 26. f3 {[%clk 0:01:03.3]} 26... gxf3+ {[%clk 0:00:56.1]} 27.
Nxf3 {[%clk 0:01:00.1]} 27... fxe4 {[%clk 0:00:54.1]} 28. dxe4 {[%clk
0:00:57.5]} 28... Bxe4 {[%clk 0:00:32.5]} 29. Nxd4 {[%clk 0:00:53]} 29... Nxf3
{[%clk 0:00:28.8]} 30. Nxf3 {[%clk 0:00:53.1]} 30... Qxd2 {[%clk 0:00:29]} 0-1

[Event "Early-Titled-Tuesday-Blitz-March-12-2024"]
[Site "Chess.com"]
[Date "2024.03.12"]
[Round "7"]
[White "MikeSailer"]
[Black "FlemingA"]
[Result "1/2-1/2"]
[WhiteElo "2145"]
[BlackElo "2417"]
[TimeControl "180+1"]
[EndTime "9:15:12 PDT"]
[Termination "Game drawn by repetition"]

1. d4 {[%clk 0:00:50.8]} 1... g6 {[%clk 0:03:00.9]} 2. Nf3 {[%clk 0:00:50.1]}
2... Bg7 {[%clk 0:02:56.3]} 3. Bf4 {[%clk 0:00:49.2]} 3... d6 {[%clk 0:02:56.3]}
4. e3 {[%clk 0:00:49.2]} 4... Nc6 {[%clk 0:02:56.5]} 5. Be2 {[%clk 0:00:49.7]}
5... Nf6 {[%clk 0:02:55.4]} 6. h3 {[%clk 0:00:50]} 6... O-O {[%clk 0:02:56]} 7.
O-O {[%clk 0:00:49.7]} 7... Bf5 {[%clk 0:02:56.1]} 8. c4 {[%clk 0:00:48.9]} 8...
Ne4 {[%clk 0:02:56.4]} 9. Nc3 {[%clk 0:00:48.6]} 9... a6 {[%clk 0:02:54.1]} 10.
Nxe4 {[%clk 0:00:47.2]} 10... Bxe4 {[%clk 0:02:54.5]} 11. a3 {[%clk 0:00:45.5]}
11... h6 {[%clk 0:02:52.7]} 12. b4 {[%clk 0:00:44.6]} 12... e5 {[%clk
0:02:53.1]} 13. Bh2 {[%clk 0:00:43.5]} 13... exd4 {[%clk 0:02:51.7]} 14. Nxd4
{[%clk 0:00:43]} 14... Qg5 {[%clk 0:02:39.6]} 15. Bf3 {[%clk 0:00:33.2]} 15...
Nxd4 {[%clk 0:02:36.4]} 16. exd4 {[%clk 0:00:32.8]} 16... Bxf3 {[%clk 0:02:33]}
17. Qxf3 {[%clk 0:00:33.1]} 17... Bxd4 {[%clk 0:02:25.4]} 18. Rad1 {[%clk
0:00:32.6]} 18... Bg7 {[%clk 0:01:54.8]} 19. Qxb7 {[%clk 0:00:31.4]} 19... Qe7
{[%clk 0:01:45]} 20. Rfe1 {[%clk 0:00:29.9]} 20... Qd7 {[%clk 0:01:45.3]} 21. c5
{[%clk 0:00:27.9]} 21... Rfb8 {[%clk 0:01:45.2]} 22. Qd5 {[%clk 0:00:24.2]}
22... a5 {[%clk 0:01:44.2]} 23. cxd6 {[%clk 0:00:22]} 23... cxd6 {[%clk
0:01:43.2]} 24. Bxd6 {[%clk 0:00:21.2]} 24... Rd8 {[%clk 0:01:42]} 25. Re7
{[%clk 0:00:11.8]} 25... Qxe7 {[%clk 0:01:34.2]} 26. Bxe7 {[%clk 0:00:11.9]}
26... Rxd5 {[%clk 0:01:35.1]} 27. Rxd5 {[%clk 0:00:11.8]} 27... Re8 {[%clk
0:01:35.4]} 28. Bc5 {[%clk 0:00:08.5]} 28... axb4 {[%clk 0:01:32.5]} 29. axb4
{[%clk 0:00:08.6]} 29... Re1+ {[%clk 0:01:33.4]} 30. Kh2 {[%clk 0:00:08.9]}
30... Rb1 {[%clk 0:01:25.9]} 31. g3 {[%clk 0:00:09.3]} 31... h5 {[%clk
0:01:25.5]} 32. Kg2 {[%clk 0:00:09.4]} 32... Rb2 {[%clk 0:01:24.2]} 33. Rd8+
{[%clk 0:00:07.1]} 33... Kh7 {[%clk 0:01:24.1]} 34. Rd7 {[%clk 0:00:07.9]} 34...
Kg8 {[%clk 0:01:24.1]} 35. Rd8+ {[%clk 0:00:08.4]} 35... Kh7 {[%clk 0:01:24.6]}
36. Rd7 {[%clk 0:00:09.2]} 36... Kg8 {[%clk 0:01:21]} 37. Rd8+ {[%clk
0:00:09.8]} 1/2-1/2

[Event "Early-Titled-Tuesday-Blitz-March-12-2024"]
[Site "Chess.com"]
[Date "2024.03.12"]
[Round "7"]
[White "FischerKasparow"]
[Black "ViktoriyaTarasova"]
[Result "0-1"]
[WhiteElo "2090"]
[BlackElo "2313"]
[TimeControl "180+1"]
[EndTime "9:15:16 PDT"]
[Termination "ViktoriyaTarasova won by checkmate"]

1. e4 {[%clk 0:02:35.4]} 1... e5 {[%clk 0:02:59]} 2. Nf3 {[%clk 0:02:34.1]} 2...
Nc6 {[%clk 0:02:58.8]} 3. d4 {[%clk 0:02:34.2]} 3... exd4 {[%clk 0:02:58.2]} 4.
Bc4 {[%clk 0:02:32.5]} 4... Nf6 {[%clk 0:02:56]} 5. e5 {[%clk 0:02:32.3]} 5...
d5 {[%clk 0:02:55.8]} 6. Bb5 {[%clk 0:02:32.5]} 6... Ne4 {[%clk 0:02:55.6]} 7.
Nxd4 {[%clk 0:02:33]} 7... Bd7 {[%clk 0:02:54]} 8. Bxc6 {[%clk 0:02:33.3]} 8...
bxc6 {[%clk 0:02:53.7]} 9. O-O {[%clk 0:02:33.6]} 9... Be7 {[%clk 0:02:49.1]}
10. f3 {[%clk 0:02:33.9]} 10... Nc5 {[%clk 0:02:48.4]} 11. f4 {[%clk 0:02:33.6]}
11... Ne4 {[%clk 0:02:42.4]} 12. f5 {[%clk 0:02:27.2]} 12... Bc5 {[%clk
0:02:35.2]} 13. Be3 {[%clk 0:02:25.2]} 13... Qe7 {[%clk 0:02:33.1]} 14. f6
{[%clk 0:02:07]} 14... Qxe5 {[%clk 0:02:24]} 15. fxg7 {[%clk 0:02:00.5]} 15...
Qxg7 {[%clk 0:02:23.6]} 16. c3 {[%clk 0:01:58.4]} 16... Rg8 {[%clk 0:02:21.1]}
17. Qf3 {[%clk 0:01:53.7]} 17... Bg4 {[%clk 0:02:15.6]} 18. Qf4 {[%clk
0:01:43.3]} 18... Bd6 {[%clk 0:02:15.1]} 19. Qh6 {[%clk 0:01:16.2]} 19... Qxh6
{[%clk 0:01:54.2]} 20. Bxh6 {[%clk 0:01:17.1]} 20... Bh3 {[%clk 0:01:53.9]} 21.
g3 {[%clk 0:00:55.3]} 21... Bxf1 {[%clk 0:01:37]} 22. Kxf1 {[%clk 0:00:56.2]}
22... Kd7 {[%clk 0:01:33.3]} 23. Na3 {[%clk 0:00:38.8]} 23... Rg6 {[%clk
0:01:30.8]} 24. Bf4 {[%clk 0:00:29.8]} 24... Bxf4 {[%clk 0:01:26.9]} 25. gxf4
{[%clk 0:00:30.7]} 25... Rag8 {[%clk 0:01:26.9]} 26. Ke2 {[%clk 0:00:30.7]}
26... Rg2+ {[%clk 0:01:25.6]} 27. Kf3 {[%clk 0:00:23.5]} 27... Rxh2 {[%clk
0:01:23.1]} 28. f5 {[%clk 0:00:23.8]} 28... Rg3+ {[%clk 0:01:18]} 29. Kf4 {[%clk
0:00:23.1]} 29... f6 {[%clk 0:01:15.3]} 30. Nf3 {[%clk 0:00:18.9]} 30... Rf2
{[%clk 0:01:13.6]} 31. Ke3 {[%clk 0:00:05.2]} 31... Rgxf3+ {[%clk 0:01:10]} 32.
Kd4 {[%clk 0:00:04.9]} 32... Rd2# {[%clk 0:01:09.6]} 0-1

[Event "Early-Titled-Tuesday-Blitz-March-12-2024"]
[Site "Chess.com"]
[Date "2024.03.12"]
[Round "7"]
[White "MightyMike_009"]
[Black "BilicVladimir"]
[Result "1-0"]
[WhiteElo "2868"]
[BlackElo "2671"]
[TimeControl "180+1"]
[EndTime "9:15:20 PDT"]
[Termination "MightyMike_009 won by checkmate"]

1. d4 {[%clk 0:03:00.9]} 1... d5 {[%clk 0:02:59.4]} 2. c4 {[%clk 0:03:01.3]}
2... c6 {[%clk 0:02:59.6]} 3. Nf3 {[%clk 0:02:59.3]} 3... Nf6 {[%clk 0:02:59.7]}
4. e3 {[%clk 0:02:59.3]} 4... a6 {[%clk 0:02:59.9]} 5. Nc3 {[%clk 0:02:56.5]}
5... b5 {[%clk 0:02:59.8]} 6. cxd5 {[%clk 0:02:33.8]} 6... cxd5 {[%clk
0:02:59.2]} 7. Bd3 {[%clk 0:02:31.7]} 7... e6 {[%clk 0:02:59.3]} 8. O-O {[%clk
0:02:31.7]} 8... Nbd7 {[%clk 0:02:57.7]} 9. Ne5 {[%clk 0:02:25.9]} 9... Nxe5
{[%clk 0:02:57.1]} 10. dxe5 {[%clk 0:02:26.8]} 10... Nd7 {[%clk 0:02:56.7]} 11.
f4 {[%clk 0:02:25.7]} 11... Be7 {[%clk 0:02:50.4]} 12. Kh1 {[%clk 0:02:21.8]}
12... O-O {[%clk 0:02:50.1]} 13. Ne2 {[%clk 0:01:46.8]} 13... Nc5 {[%clk
0:02:41.8]} 14. Bc2 {[%clk 0:01:44.2]} 14... Bb7 {[%clk 0:02:41.1]} 15. Nd4
{[%clk 0:01:44]} 15... g6 {[%clk 0:02:39.6]} 16. Bd2 {[%clk 0:01:29.7]} 16...
Ne4 {[%clk 0:02:38.1]} 17. Be1 {[%clk 0:01:26.3]} 17... Rc8 {[%clk 0:02:37]} 18.
Rc1 {[%clk 0:01:25.8]} 18... Qd7 {[%clk 0:02:35.5]} 19. Ba5 {[%clk 0:01:23.5]}
19... f6 {[%clk 0:02:28.8]} 20. Bxe4 {[%clk 0:01:11.2]} 20... dxe4 {[%clk
0:02:27.3]} 21. Nf5 {[%clk 0:01:10.9]} 21... Bd5 {[%clk 0:02:17.4]} 22. Nxe7+
{[%clk 0:01:03.1]} 22... Qxe7 {[%clk 0:02:16.9]} 23. exf6 {[%clk 0:00:59.8]}
23... Qxf6 {[%clk 0:02:13.2]} 24. Bc3 {[%clk 0:00:58.3]} 24... Qf5 {[%clk
0:02:09.2]} 25. Qd4 {[%clk 0:00:56.7]} 25... Rxc3 {[%clk 0:01:56.8]} 26. Rxc3
{[%clk 0:00:57.6]} 26... g5 {[%clk 0:01:53.3]} 27. Rc7 {[%clk 0:00:54.3]} 27...
Qg6 {[%clk 0:01:52.8]} 28. g3 {[%clk 0:00:50.3]} 28... h5 {[%clk 0:01:33.9]} 29.
f5 {[%clk 0:00:49.4]} 29... Qf6 {[%clk 0:01:30.8]} 30. Qc5 {[%clk 0:00:34.9]}
30... Qxb2 {[%clk 0:01:25.3]} 31. Qe7 {[%clk 0:00:26.9]} 31... Rxf5 {[%clk
0:00:52.3]} 32. Qh7+ {[%clk 0:00:25.4]} 32... Kf8 {[%clk 0:00:50.8]} 33. Rc8#
{[%clk 0:00:25.8]} 1-0